fUSD/lending_fUSD_20240802
["ID","MTS","AMOUNT","RATE_DAILY","PERIOD"]
[333883528,1722598241740,-2763.31,0.00019178,2]
[333883529,1722598241749,-151.0,0.00019178,2]
[333883530,1722598241759,-151.0,0.00019178,2]
[333883531,1722598241771,-151.0,0.00019178,2]
[333883532,1722598241781,-151.0,0.00019178,2]
[333883533,1722598241791,-151.0,0.00019178,2]
[333883534,1722598241803,-151.0,0.00019178,2]
[333883535,1722598241813,-501.95,0.00019178,2]
[333883536,1722598241822,-151.0,0.00019178,2]
[333883537,1722598241832,-151.0,0.00019178,2]
[333883538,1722598241842,-151.0,0.00019178,2]
[333883539,1722598241852,-151.0,0.00019178,2]
[333883540,1722598241862,-284.0,0.00019178,2]
[333883541,1722598241872,-151.0,0.00019178,2]
[333883542,1722598241883,-500.0,0.00019178,2]
[333883543,1722598241892,-500.0,0.00019178,2]
[333883544,1722598241902,-1085.38,0.00019178,2]
[333883545,1722598241912,-500.0,0.00019178,2]
[333883546,1722598241921,-500.0,0.00019178,2]
[333883547,1722598241932,-500.0,0.00019178,2]
[333883548,1722598241943,-500.0,0.00019178,2]
[333883549,1722598241953,-500.0,0.00019178,2]
[333883550,1722598241963,-563.9,0.00019178,2]
[333883551,1722598241973,-546.29,0.00019178,2]
[333883552,1722598241984,-500.0,0.00019178,2]
[333883553,1722598241998,-500.0,0.00019178,2]
[333883554,1722598242008,-1370.54,0.00019178,2]
[333883555,1722598242018,-1799.85,0.00019178,2]
[333883556,1722598242028,-500.0,0.00019178,2]
[333883557,1722598242039,-656.71,0.00019178,2]
[333883558,1722598242052,-203.136972,0.00019178,2]
[333883559,1722598242062,-500.0,0.00019178,2]
[333883560,1722598242072,-500.0,0.00019178,2]
[333883561,1722598242083,-2338.15,0.00019178,2]
[333883562,1722598242092,-500.0,0.00019178,2]
[333883563,1722598242102,-500.0,0.00019178,2]
[333883564,1722598242112,-1003.76,0.00019178,2]
[333883565,1722598242121,-568.09677858,0.00019178,2]
[333883566,1722598242132,-687.35,0.00019178,2]
[333883567,1722598242143,-500.0,0.00019178,2]
[333883568,1722598242153,-500.0,0.00019178,2]
[333883569,1722598242163,-1687.57,0.00019178,2]
[333883570,1722598242173,-500.0,0.00019178,2]
[333883571,1722598242183,-868.8,0.00019178,2]
[333883572,1722598242195,-1032.92,0.00019178,2]
[333883573,1722598242204,-1094.92,0.00019178,2]
[333883574,1722598242214,-698.98,0.00019178,2]
[333883575,1722598242224,-500.0,0.00019178,2]
[333883576,1722598242396,-500.0,0.00019178,2]
[333883577,1722598242407,-869.05,0.00019178,2]
[333883578,1722598242417,-537.98,0.00019178,2]
[333883579,1722598242427,-1712.2,0.00019178,2]
[333883580,1722598242437,-500.0,0.00019178,2]
[333883581,1722598242447,-500.0,0.00019178,2]
[333883582,1722598242456,-512.74199943,0.00019178,2]
[333883583,1722598242466,-687.69,0.00019178,2]
[333883584,1722598242476,-500.0,0.00019178,2]
[333883585,1722598242485,-790.71,0.00019178,2]
[333883586,1722598242496,-500.0,0.00019178,2]
[333883587,1722598242505,-500.0,0.00019178,2]
[333883588,1722598242515,-151.0,0.00019178,2]
[333883589,1722598242524,-151.0,0.00019178,2]
[333883590,1722598242534,-151.0,0.00019178,2]
[333883591,1722598242543,-151.0,0.00019178,2]
[333883592,1722598242560,-151.0,0.00019178,2]
[333883593,1722598242569,-151.0,0.00019178,2]
[333883594,1722598242579,-500.0,0.00019178,2]
[333883595,1722598242588,-151.0,0.00019178,2]
[333883596,1722598242597,-500.0,0.00019178,2]
[333883597,1722598242607,-500.0,0.00019178,2]
[333883598,1722598242616,-500.0,0.00019178,2]
[333883599,1722598242626,-500.0,0.00019178,2]
[333883600,1722598242636,-500.0,0.00019178,2]
[333883601,1722598242646,-500.0,0.00019178,2]
[333883602,1722598242656,-655.12,0.00019178,2]
[333883603,1722598242665,-500.0,0.00019178,2]
[333883604,1722598242675,-151.0,0.00019178,2]
[333883605,1722598242684,-720.45,0.00019178,2]
[333883606,1722598242694,-151.0,0.00019178,2]
[333883607,1722598242703,-151.0,0.00019178,2]
[333883608,1722598242712,-151.0,0.00019178,2]
[333883609,1722598242721,-151.0,0.00019178,2]
[333883610,1722598242730,-151.0,0.00019178,2]
[333883611,1722598242739,-151.0,0.00019178,2]
[333883614,1722598242749,-151.0,0.00019178,2]
[333883617,1722598242758,-151.0,0.00019178,2]
[333883619,1722598242771,-151.0,0.00019178,2]
[333883621,1722598242782,-151.0,0.00019178,2]
[333883622,1722598242792,-160.027776,0.00019178,2]
[333883624,1722598242807,-510.73,0.00019178,2]
[333883626,1722598242817,-500.0,0.00019178,2]
[333883629,1722598242826,-2144.49,0.00019178,2]
[333883631,1722598242836,-151.0,0.00019178,2]
[333883633,1722598242845,-151.0,0.00019178,2]
[333883635,1722598242858,-151.0,0.00019178,2]
[333883636,1722598242868,-500.0,0.00019178,2]
[333883637,1722598242877,-151.0,0.00019178,2]
[333883638,1722598242886,-500.0,0.00019178,2]
[333883640,1722598242896,-151.0,0.00019178,2]
[333883642,1722598242905,-2213.96,0.00019178,2]
[333883643,1722598242915,-151.0,0.00019178,2]
[333883644,1722598242924,-500.0,0.00019178,2]
[333883645,1722598242933,-151.0,0.00019178,2]
[333883646,1722598242943,-195.337089,0.00019178,2]
[333883647,1722598242952,-151.0,0.00019178,2]
[333883648,1722598242962,-151.0,0.00019178,2]
[333883649,1722598242971,-151.0,0.00019178,2]
[333883650,1722598242980,-151.0,0.00019178,2]
[333883651,1722598242990,-151.0,0.00019178,2]
[333883652,1722598242999,-1563.14,0.00019178,2]
[333883653,1722598243009,-500.0,0.00019178,2]
[333883654,1722598243019,-187.268867,0.00019178,2]
[333883655,1722598243029,-500.0,0.00019178,2]
[333883656,1722598243038,-554.2,0.00019178,2]
[333883657,1722598243049,-822.28,0.00019178,2]
[333883658,1722598243058,-1235.13,0.00019178,2]
[333883659,1722598243067,-778.3,0.00019178,2]
[333883660,1722598243077,-500.0,0.00019178,2]
[333883661,1722598243086,-2170.8,0.00019178,2]
[333883662,1722598243095,-500.0,0.00019178,2]
[333883663,1722598243105,-2283.12,0.00019178,2]
[333883664,1722598243114,-664.66,0.00019178,2]
[333883665,1722598243124,-247.99315908,0.00019178,2]
[333883666,1722598243133,-500.0,0.00019178,2]
[333883667,1722598243143,-1658.51,0.00019178,2]
[333883668,1722598243152,-589.3669336,0.00019178,2]
[333883669,1722598243162,-588.61,0.00019178,2]
[333883670,1722598243171,-704.59,0.00019178,2]
[333883671,1722598243181,-500.0,0.00019178,2]
[333883672,1722598243190,-945.8,0.00019178,2]
[333883673,1722598243200,-3667.96,0.00019178,2]
[333883674,1722598243209,-500.0,0.00019178,2]
[333883675,1722598243219,-549.64,0.00019178,2]
[333883676,1722598243228,-500.0,0.00019178,2]
[333883677,1722598243238,-500.0,0.00019178,2]
[333883678,1722598243247,-610.85,0.00019178,2]
[333883679,1722598243256,-500.0,0.00019178,2]
[333883680,1722598243266,-1285.4,0.00019178,2]
[333883681,1722598243275,-500.0,0.00019178,2]
[333883682,1722598243284,-1525.0,0.00019178,2]
[333883683,1722598243294,-515.83478389,0.00019178,2]
[333883684,1722598243309,-582.51,0.00019178,2]
[333883685,1722598243319,-2295.34,0.00019178,2]
[333883686,1722598243328,-1337.57,0.00019178,2]
[333883687,1722598243337,-500.0,0.00019178,2]
[333883688,1722598243347,-500.0,0.00019178,2]
[333883689,1722598243356,-816.75,0.00019178,2]
[333883690,1722598243365,-825.07,0.00019178,2]
[333883691,1722598243375,-601.26,0.00019178,2]
[333883692,1722598243384,-500.0,0.00019178,2]
[333883694,1722598243394,-683.88,0.00019178,2]
[333883696,1722598243403,-632.4,0.00019178,2]
[333883698,1722598243413,-685.73,0.00019178,2]
[333883700,1722598243422,-632.42,0.00019178,2]
[333883702,1722598243432,-500.0,0.00019178,2]
[333883704,1722598243442,-291.142077,0.00019178,2]
[333883706,1722598243451,-500.0,0.00019178,2]
[333883707,1722598243460,-500.0,0.00019178,2]
[333883709,1722598243469,-500.0,0.00019178,2]
[333883711,1722598243480,-620.69,0.00019178,2]
[333883713,1722598243489,-682.34,0.00019178,2]
[333883715,1722598243499,-500.0,0.00019178,2]
[333883717,1722598243508,-751.63,0.00019178,2]
[333883718,1722598243518,-500.0,0.00019178,2]
[333883719,1722598243527,-500.0,0.00019178,2]
[333883720,1722598243537,-500.0,0.00019178,2]
[333883721,1722598243551,-500.0,0.00019178,2]
[333883722,1722598243560,-500.0,0.00019178,2]
[333883723,1722598243570,-878.39,0.00019178,2]
[333883724,1722598243579,-1667.81,0.00019178,2]
[333883725,1722598243588,-500.0,0.00019178,2]
[333883726,1722598243598,-500.0,0.00019178,2]
[333883727,1722598243607,-643.67,0.00019178,2]
[333883728,1722598243617,-151.0,0.00019178,2]
[333883729,1722598243626,-500.0,0.00019178,2]
[333883730,1722598243636,-151.0,0.00019178,2]
[333883731,1722598243646,-500.0,0.00019178,2]
[333883732,1722598243655,-500.0,0.00019178,2]
[333883733,1722598243665,-151.0,0.00019178,2]
[333883734,1722598243674,-185.167163,0.00019178,2]
[333883735,1722598243684,-3491.95,0.00019178,2]
[333883736,1722598243693,-1602.21,0.00019178,2]
[333883737,1722598243702,-604.46,0.00019178,2]
[333883738,1722598243711,-500.0,0.00019178,2]
[333883739,1722598243721,-513.06,0.00019178,2]
[333883740,1722598243730,-1087.99,0.00019178,2]
[333883741,1722598243740,-500.0,0.00019178,2]
[333883742,1722598243750,-500.0,0.00019178,2]
[333883743,1722598243759,-3437.58,0.00019178,2]
[333883744,1722598243770,-500.0,0.00019178,2]
[333883745,1722598243784,-647.05,0.00019178,2]
[333883746,1722598243794,-500.0,0.00019178,2]
[333883747,1722598243806,-500.0,0.00019178,2]
[333883748,1722598243817,-923.01,0.00019178,2]
[333883749,1722598243826,-500.0,0.00019178,2]
[333883750,1722598243835,-1666.15,0.00019178,2]
[333883751,1722598243845,-1797.49,0.00019178,2]
[333883752,1722598243855,-500.0,0.00019178,2]
[333883753,1722598243863,-822.21,0.00019178,2]
[333883754,1722598243872,-688.36,0.00019178,2]
[333883755,1722598243882,-500.0,0.00019178,2]
[333883756,1722598243891,-500.0,0.00019178,2]
[333883757,1722598243900,-697.31,0.00019178,2]
[333883758,1722598243909,-505.92,0.00019178,2]
[333883759,1722598243919,-877.81,0.00019178,2]
[333883760,1722598243928,-1231.93,0.00019178,2]
[333883761,1722598243937,-916.8,0.00019178,2]
[333883762,1722598243946,-500.0,0.00019178,2]
[333883763,1722598243955,-709.55,0.00019178,2]
[333883764,1722598243965,-847.96,0.00019178,2]
[333883765,1722598243974,-151.0,0.00019178,2]
[333883766,1722598243983,-151.0,0.00019178,2]
[333883767,1722598243993,-500.0,0.00019178,2]
[333883768,1722598244002,-151.0,0.00019178,2]
[333883769,1722598244011,-151.0,0.00019178,2]
[333883770,1722598244021,-151.0,0.00019178,2]
[333883771,1722598244030,-244.331585,0.00019178,2]
[333883772,1722598244039,-799.21,0.00019178,2]
[333883773,1722598244050,-500.0,0.00019178,2]
[333883774,1722598244060,-151.0,0.00019178,2]
[333883775,1722598244071,-151.0,0.00019178,2]
[333883776,1722598244081,-522.4,0.00019178,2]
[333883777,1722598244090,-1407.32,0.00019178,2]
[333883778,1722598244099,-151.0,0.00019178,2]
[333883779,1722598244109,-500.0,0.00019178,2]
[333883780,1722598244119,-962.05,0.00019178,2]
[333883781,1722598244128,-151.0,0.00019178,2]
[333883782,1722598244138,-608.29,0.00019178,2]
[333883783,1722598244147,-151.0,0.00019178,2]
[333883784,1722598244156,-1266.26,0.00019178,2]
[333883785,1722598244166,-1347.51,0.00019178,2]
[333883786,1722598244178,-500.0,0.00019178,2]
[333883787,1722598244188,-1604.52,0.00019178,2]
[333883788,1722598244197,-500.0,0.00019178,2]
[333883789,1722598244207,-500.0,0.00019178,2]
[333883790,1722598244217,-500.0,0.00019178,2]
[333883791,1722598244226,-500.0,0.00019178,2]
[333883792,1722598244237,-745.95,0.00019178,2]
[333883793,1722598244247,-1625.86,0.00019178,2]
[333883794,1722598244256,-1966.65,0.00019178,2]
[333883795,1722598244266,-2562.73,0.00019178,2]
[333883796,1722598244276,-675.94,0.00019178,2]
[333883797,1722598244286,-500.0,0.00019178,2]
[333883798,1722598244296,-500.0,0.00019178,2]
[333883799,1722598244308,-645.33,0.00019178,2]
[333883800,1722598244317,-500.0,0.00019178,2]
[333883801,1722598244328,-500.0,0.00019178,2]
[333883802,1722598244338,-500.0,0.00019178,2]
[333883803,1722598244347,-500.0,0.00019178,2]
[333883804,1722598244357,-553.82,0.00019178,2]
[333883805,1722598244367,-328.84666454,0.00019178,2]
[333883806,1722598244377,-2643.95,0.00019178,2]
[333883807,1722598244387,-1226.44,0.00019178,2]
[333883808,1722598244397,-1810.74,0.00019178,2]
[333883809,1722598244406,-500.0,0.00019178,2]
[333883810,1722598244417,-500.0,0.00019178,2]
[333883811,1722598244426,-500.0,0.00019178,2]
[333883812,1722598244437,-1525.54,0.00019178,2]
[333883813,1722598244447,-500.0,0.00019178,2]
[333883814,1722598244457,-500.0,0.00019178,2]
[333883815,1722598244466,-2430.26,0.00019178,2]
[333883816,1722598244477,-500.0,0.00019178,2]
[333883817,1722598244486,-1535.87,0.00019178,2]
[333883818,1722598244496,-799.13,0.00019178,2]
[333883819,1722598244506,-500.0,0.00019178,2]
[333883820,1722598244516,-500.0,0.00019178,2]
[333883821,1722598244527,-564.53570703,0.00019178,2]
[333883822,1722598244537,-2569.37,0.00019178,2]
[333883823,1722598244546,-585.39,0.00019178,2]
[333883824,1722598244560,-850.85,0.00019178,2]
[333883825,1722598244570,-500.0,0.00019178,2]
[333883826,1722598244580,-500.0,0.00019178,2]
[333883827,1722598244589,-534.93,0.00019178,2]
[333883828,1722598244598,-1923.57,0.00019178,2]
[333883829,1722598244608,-786.57,0.00019178,2]
[333883830,1722598244618,-645.61,0.00019178,2]
[333883831,1722598244628,-967.54,0.00019178,2]
[333883832,1722598244638,-715.7,0.00019178,2]
[333883833,1722598244648,-650.58,0.00019178,2]
[333883834,1722598244658,-516.94,0.00019178,2]
[333883835,1722598244668,-1009.7,0.00019178,2]
[333883836,1722598244677,-500.0,0.00019178,2]
[333883837,1722598244687,-1495.63,0.00019178,2]
[333883838,1722598244697,-185.366211,0.00019178,2]
[333883839,1722598244707,-500.0,0.00019178,2]
[333883840,1722598244716,-185.366211,0.00019178,2]
[333883841,1722598244726,-500.0,0.00019178,2]
[333883842,1722598244736,-185.366211,0.00019178,2]
[333883843,1722598244745,-185.366211,0.00019178,2]
[333883844,1722598244755,-500.0,0.00019178,2]
[333883845,1722598244765,-185.366211,0.00019178,2]
[333883846,1722598244779,-185.366211,0.00019178,2]
[333883847,1722598244789,-185.366211,0.00019178,2]
[333883848,1722598244798,-500.0,0.00019178,2]
[333883849,1722598244809,-185.366211,0.00019178,2]
[333883850,1722598244819,-500.0,0.00019178,2]
[333883851,1722598244829,-1383.92,0.00019178,2]
[333883852,1722598244838,-185.366211,0.00019178,2]
[333883853,1722598244851,-633.47,0.00019178,2]
[333883854,1722598244860,-2728.65,0.00019178,2]
[333883855,1722598244869,-185.366211,0.00019178,2]
[333883856,1722598244878,-185.366211,0.00019178,2]
[333883857,1722598244888,-185.366211,0.00019178,2]
[333883858,1722598244898,-500.0,0.00019178,2]
[333883859,1722598244908,-643.57,0.00019178,2]
[333883860,1722598244918,-185.366211,0.00019178,2]
[333883861,1722598244928,-185.366211,0.00019178,2]
[333883862,1722598244938,-1291.19,0.00019178,2]
[333883863,1722598244948,-185.366211,0.00019178,2]
[333883864,1722598244958,-185.366211,0.00019178,2]
[333883865,1722598244968,-500.0,0.00019178,2]
[333883866,1722598244978,-185.366211,0.00019178,2]
[333883867,1722598244988,-185.366211,0.00019178,2]
[333883868,1722598244998,-500.0,0.00019178,2]
[333883869,1722598245007,-2673.99,0.00019178,2]
[333883870,1722598245018,-955.06,0.00019178,2]
[333883871,1722598245028,-1262.46,0.00019178,2]
[333883872,1722598245038,-564.05,0.00019178,2]
[333883873,1722598245048,-2393.15,0.00019178,2]
[333883874,1722598245066,-500.0,0.00019178,2]
[333883875,1722598245077,-770.53,0.00019178,2]
[333883876,1722598245087,-1288.79,0.00019178,2]
[333883877,1722598245098,-1407.23,0.00019178,2]
[333883878,1722598245108,-500.0,0.00019178,2]
[333883879,1722598245118,-1671.25,0.00019178,2]
[333883880,1722598245128,-500.0,0.00019178,2]
[333883881,1722598245138,-500.0,0.00019178,2]
[333883882,1722598245148,-1090.97,0.00019178,2]
[333883883,1722598245159,-2343.59,0.00019178,2]
[333883884,1722598245168,-897.83,0.00019178,2]
[333883885,1722598245178,-500.0,0.00019178,2]
[333883886,1722598245188,-500.0,0.00019178,2]
[333883887,1722598245197,-830.96,0.00019178,2]
[333883888,1722598245207,-649.6165096,0.00019178,2]
[333883889,1722598245216,-500.0,0.00019178,2]
[333883890,1722598245227,-3238.36,0.00019178,2]
[333883891,1722598245236,-567.57,0.00019178,2]
[333883892,1722598245246,-500.0,0.00019178,2]
[333883893,1722598245255,-500.0,0.00019178,2]
[333883894,1722598245265,-634.53,0.00019178,2]
[333883895,1722598245275,-1475.2,0.00019178,2]
[333883896,1722598245285,-1735.59,0.00019178,2]
[333883897,1722598245294,-634.52722583,0.00019178,2]
[333883898,1722598245310,-514.88697216,0.00019178,2]
[333883899,1722598245320,-500.0,0.00019178,2]
[333883900,1722598245330,-336.744176,0.00019178,2]
[333883901,1722598245340,-500.0,0.00019178,2]
[333883902,1722598245350,-336.744176,0.00019178,2]
[333883903,1722598245360,-336.744176,0.00019178,2]
[333883904,1722598245370,-336.744176,0.00019178,2]
[333883905,1722598245380,-336.744176,0.00019178,2]
[333883906,1722598245390,-500.0,0.00019178,2]
[333883907,1722598245400,-2617.74,0.00019178,2]
[333883908,1722598245410,-336.744176,0.00019178,2]
[333883909,1722598245420,-902.14,0.00019178,2]
[333883910,1722598245430,-500.0,0.00019178,2]
[333883911,1722598245440,-500.0,0.00019178,2]
[333883912,1722598245450,-740.77,0.00019178,2]
[333883913,1722598245459,-336.744176,0.00019178,2]
[333883914,1722598245470,-336.744176,0.00019178,2]
[333883915,1722598245480,-336.744176,0.00019178,2]
[333883916,1722598245489,-520.69597388,0.00019178,2]
[333883917,1722598245499,-336.744176,0.00019178,2]
[333883918,1722598245508,-336.744176,0.00019178,2]
[333883919,1722598245519,-336.744176,0.00019178,2]
[333883920,1722598245528,-336.744176,0.00019178,2]
[333883921,1722598245538,-500.0,0.00019178,2]
[333883922,1722598245549,-336.744176,0.00019178,2]
[333883923,1722598245562,-983.97,0.00019178,2]
[333883924,1722598245572,-612.07,0.00019178,2]
[333883925,1722598245582,-336.744176,0.00019178,2]
[333883926,1722598245592,-1028.82,0.00019178,2]
[333883927,1722598245602,-336.744176,0.00019178,2]
[333883928,1722598245612,-536.93,0.00019178,2]
[333883929,1722598245622,-336.744176,0.00019178,2]
[333883930,1722598245632,-336.744176,0.00019178,2]
[333883931,1722598245642,-1788.59,0.00019178,2]
[333883932,1722598245652,-500.0,0.00019178,2]
[333883933,1722598245662,-500.0,0.00019178,2]
[333883934,1722598245673,-500.0,0.00019178,2]
[333883935,1722598245683,-500.0,0.00019178,2]
[333883936,1722598245692,-826.53,0.00019178,2]
[333883937,1722598245703,-500.0,0.00019178,2]
[333883938,1722598245712,-1696.47,0.00019178,2]
[333883939,1722598245722,-500.0,0.00019178,2]
[333883940,1722598245732,-500.0,0.00019178,2]
[333883941,1722598245742,-500.0,0.00019178,2]
[333883942,1722598245752,-500.0,0.00019178,2]
[333883943,1722598245762,-151.0,0.00019178,2]
[333883944,1722598245776,-500.0,0.00019178,2]
[333883945,1722598245785,-500.0,0.00019178,2]
[333883946,1722598245794,-1675.58,0.00019178,2]
[333883947,1722598245807,-151.0,0.00019178,2]
[333883948,1722598245816,-151.0,0.00019178,2]
[333883949,1722598245826,-500.0,0.00019178,2]
[333883950,1722598245836,-151.0,0.00019178,2]
[333883951,1722598245851,-151.0,0.00019178,2]
[333883952,1722598245861,-500.0,0.00019178,2]
[333883953,1722598245870,-500.0,0.00019178,2]
[333883954,1722598245880,-151.0,0.00019178,2]
[333883955,1722598245889,-151.0,0.00019178,2]
[333883956,1722598245899,-151.0,0.00019178,2]
[333883957,1722598245908,-1899.25,0.00019178,2]
[333883958,1722598245918,-1326.92,0.00019178,2]
[333883959,1722598245928,-151.0,0.00019178,2]
[333883960,1722598245937,-300.0,0.00019178,2]
[333883961,1722598245946,-151.0,0.00019178,2]
[333883962,1722598245956,-151.0,0.00019178,2]
[333883963,1722598245966,-291.521952,0.00019178,2]
[333883964,1722598245976,-844.15,0.00019178,2]
[333883965,1722598245986,-3121.87,0.00019178,2]
[333883966,1722598245995,-500.0,0.00019178,2]
[333883967,1722598246005,-500.0,0.00019178,2]
[333883968,1722598246015,-500.0,0.00019178,2]
[333883969,1722598246024,-1091.04,0.00019178,2]
[333883970,1722598246034,-898.62,0.00019178,2]
[333883971,1722598246044,-151.0,0.00019178,2]
[333883972,1722598246058,-151.0,0.00019178,2]
[333883973,1722598246068,-151.0,0.00019178,2]
[333883974,1722598246077,-151.0,0.00019178,2]
[333883975,1722598246086,-172.831936,0.00019178,2]
[333883976,1722598246096,-500.0,0.00019178,2]
[333883977,1722598246105,-1016.72,0.00019178,2]
[333883978,1722598246115,-780.65,0.00019178,2]
[333883979,1722598246125,-1581.9,0.00019178,2]
[333883980,1722598246134,-1922.43,0.00019178,2]
[333883981,1722598246143,-500.0,0.00019178,2]
[333883982,1722598246153,-500.0,0.00019178,2]
[333883983,1722598246162,-500.0,0.00019178,2]
[333883984,1722598246172,-500.0,0.00019178,2]
[333883985,1722598246181,-500.0,0.00019178,2]
[333883986,1722598246191,-151.0,0.00019178,2]
[333883987,1722598246200,-3056.3,0.00019178,2]
[333883988,1722598246209,-151.0,0.00019178,2]
[333883989,1722598246219,-151.0,0.00019178,2]
[333883990,1722598246228,-263.536042,0.00019178,2]
[333883991,1722598246238,-875.73,0.00019178,2]
[333883992,1722598246247,-500.0,0.00019178,2]
[333883993,1722598246257,-500.0,0.00019178,2]
[333883994,1722598246266,-535.32250687,0.00019178,2]
[333883995,1722598246275,-2819.28,0.00019178,2]
[333883996,1722598246286,-500.0,0.00019178,2]
[333883997,1722598246296,-1043.56,0.00019178,2]
[333883998,1722598246308,-500.0,0.00019178,2]
[333883999,1722598246318,-500.0,0.00019178,2]
[333884000,1722598246327,-500.0,0.00019178,2]
[333884001,1722598246337,-1793.4,0.00019178,2]
[333884002,1722598246347,-1036.68,0.00019178,2]
[333884003,1722598246356,-264.38301881,0.00019178,2]
[333884004,1722598246366,-1885.49,0.00019178,2]
[333884005,1722598246375,-500.0,0.00019178,2]
[333884006,1722598246385,-500.0,0.00019178,2]
[333884007,1722598246395,-500.0,0.00019178,2]
[333884008,1722598246404,-500.0,0.00019178,2]
[333884009,1722598246414,-1387.38,0.00019178,2]
[333884010,1722598246424,-755.66,0.00019178,2]
[333884011,1722598246436,-570.03,0.00019178,2]
[333884012,1722598246446,-569.787886,0.00019178,2]
[333884013,1722598246456,-500.0,0.00019178,2]
[333884014,1722598246466,-1215.8,0.00019178,2]
[333884015,1722598246476,-569.787886,0.00019178,2]
[333884016,1722598246486,-569.787886,0.00019178,2]
[333884017,1722598246496,-569.787886,0.00019178,2]
[333884018,1722598246506,-569.787886,0.00019178,2]
[333884019,1722598246516,-500.0,0.00019178,2]
[333884020,1722598246526,-500.0,0.00019178,2]
[333884021,1722598246536,-500.0,0.00019178,2]
[333884022,1722598246545,-569.787886,0.00019178,2]
[333884023,1722598246558,-500.0,0.00019178,2]
[333884024,1722598246567,-569.787886,0.00019178,2]
[333884025,1722598246577,-1310.26,0.00019178,2]
[333884026,1722598246587,-569.787886,0.00019178,2]
[333884027,1722598246596,-573.67,0.00019178,2]
[333884028,1722598246606,-569.787886,0.00019178,2]
[333884029,1722598246615,-569.787886,0.00019178,2]
[333884030,1722598246797,-500.0,0.00019178,2]
[333884031,1722598246812,-569.787886,0.00019178,2]
[333884032,1722598246822,-606.52,0.00019178,2]
[333884033,1722598246832,-569.787886,0.00019178,2]
[333884034,1722598246843,-569.787886,0.00019178,2]
[333884035,1722598246853,-569.787886,0.00019178,2]
[333884036,1722598246863,-500.0,0.00019178,2]
[333884037,1722598246872,-500.0,0.00019178,2]
[333884038,1722598246882,-500.0,0.00019178,2]
[333884039,1722598246893,-500.0,0.00019178,2]
[333884040,1722598246902,-500.0,0.00019178,2]
[333884041,1722598246912,-500.0,0.00019178,2]
[333884042,1722598246922,-500.0,0.00019178,2]
[333884043,1722598246932,-1432.56,0.00019178,2]
[333884044,1722598246942,-1210.66,0.00019178,2]
[333884045,1722598246952,-1317.54,0.00019178,2]
[333884046,1722598246962,-500.0,0.00019178,2]
[333884047,1722598246972,-500.0,0.00019178,2]
[333884048,1722598246982,-500.0,0.00019178,2]
[333884049,1722598246992,-664.57,0.00019178,2]
[333884050,1722598247002,-500.0,0.00019178,2]
[333884051,1722598247012,-2730.31,0.00019178,2]
[333884052,1722598247022,-532.93,0.00019178,2]
[333884053,1722598247032,-5189.67,0.00019178,2]
[333884054,1722598247042,-500.0,0.00019178,2]